fUST/lending_fUST_20250603
["ID","MTS","AMOUNT","RATE_DAILY","PERIOD"]
[363913956,1748922648238,-1437.33,0.00020547,2]
[363913957,1748922648248,-781.65,0.00020547,2]
[363913958,1748922648257,-440.0,0.00020547,2]
[363913959,1748922648267,-1218.98,0.00020547,2]
[363913960,1748922648278,-440.0,0.00020547,2]
[363913961,1748922648287,-444.95,0.00020547,2]
[363913962,1748922648299,-688.66,0.00020547,2]
[363913963,1748922648311,-933.78,0.00020547,2]
[363913964,1748922648321,-525.8,0.00020547,2]
[363913965,1748922648332,-1169.05,0.00020547,2]
[363913966,1748922648342,-1184.86,0.00020547,2]
[363913967,1748922648352,-588.47,0.00020547,2]
[363913968,1748922648363,-449.07,0.00020547,2]
[363913969,1748922648373,-490.97,0.00020547,2]
[363913970,1748922648384,-733.02,0.00020547,2]
[363913971,1748922648394,-813.14,0.00020547,2]
[363913972,1748922648404,-853.95,0.00020547,2]
[363913973,1748922648414,-440.0,0.00020547,2]
[363913974,1748922648424,-2434.98,0.00020547,2]
[363913975,1748922648433,-152.651511,0.00020548,2]
[363913976,1748922648444,-1730.10239774,0.0002059,3]
[363913977,1748922648454,-153.0,0.0002063,2]
[363913978,1748922648464,-158.5442955,0.0002063,2]
[363913979,1748922648475,-572.6068135,0.0002063,2]
[363913980,1748922648485,-572.6068135,0.0002063,2]
[363913981,1748922648494,-158.3064727,0.0002063,2]
[363913982,1748922648505,-572.6068135,0.0002063,2]
[363913983,1748922648515,-571.7505079,0.0002063,2]
[363913984,1748922648525,-1600.0,0.00020721,2]
[363913985,1748922648535,-503.27560762,0.00020721,2]
[363913986,1748922648547,-1730.10239774,0.00020797,4]
[363913987,1748922648558,-440.0,0.00020821,2]
[363913988,1748922648568,-1437.33,0.00020821,2]
[363913989,1748922648578,-781.65,0.00020821,2]
[363913990,1748922648588,-440.0,0.00020821,2]
[363913991,1748922648599,-1218.98,0.00020821,2]
[363913992,1748922648608,-440.0,0.00020821,2]
[363913993,1748922648618,-688.66,0.00020821,2]
[363913994,1748922648628,-933.78,0.00020821,2]
[363913995,1748922648638,-525.8,0.00020821,2]
[363913996,1748922648648,-1169.05,0.00020821,2]
[363913997,1748922648659,-1184.86,0.00020821,2]
[363913998,1748922648669,-588.47,0.00020821,2]
[363913999,1748922648679,-449.07,0.00020821,2]
[363914000,1748922648690,-490.97,0.00020821,2]
[363914001,1748922648699,-733.02,0.00020821,2]
[363914002,1748922648710,-813.14,0.00020821,2]
[363914003,1748922648720,-853.95,0.00020821,2]
[363914004,1748922648731,-440.0,0.00020821,2]
[363914005,1748922648741,-2434.98,0.00020821,2]
[363914006,1748922648752,-1500.0,0.00020924,2]
[363914007,1748922648762,-152.37664978,0.0002094,2]
[363914008,1748922648771,-151.0,0.0002094,2]
[363914009,1748922648781,-500.0,0.0002094,2]
[363914010,1748922648792,-500.0,0.0002094,2]
[363914011,1748922648807,-207.4,0.0002094,2]
[363914012,1748922648818,-500.0,0.0002094,2]
[363914013,1748922648828,-500.0,0.0002094,2]
[363914014,1748922648838,-500.0,0.0002094,2]
[363914015,1748922648847,-500.0,0.0002094,2]
[363914016,1748922648857,-500.0,0.0002094,2]
[363914017,1748922648867,-500.0,0.0002094,2]
[363914018,1748922648878,-500.0,0.0002094,2]
[363914019,1748922648888,-500.0,0.0002094,2]
[363914020,1748922648898,-500.0,0.0002094,2]
[363914021,1748922648908,-500.0,0.0002094,2]
[363914022,1748922648918,-500.0,0.0002094,2]
[363914023,1748922648927,-500.0,0.0002094,2]
[363914024,1748922648938,-500.0,0.0002094,2]
[363914025,1748922648948,-500.0,0.0002094,2]
[363914026,1748922648958,-5000.0,0.0002094,2]
[363914027,1748922648968,-3898.2834867,0.0002094,2]
[363914028,1748922648978,-19432.0,0.00021,2]
[363914029,1748922648989,-151.0,0.00021,2]
[363914030,1748922649127,-151.0,0.00021,2]
[363914031,1748922649138,-151.0,0.00021,2]
[363914032,1748922649149,-152.942612,0.00021,2]
[363914033,1748922649158,-428.730718,0.00021,2]
[363914034,1748922649169,-428.730718,0.00021,2]
[363914035,1748922649180,-1730.10239774,0.00021003,4]
[363914036,1748922649190,-1506.95456467,0.00021038,2]
[363914037,1748922649201,-1000.0,0.00021049,5]
[363914038,1748922649213,-440.0,0.00021095,2]
[363914039,1748922649223,-1437.33,0.00021095,2]
[363914040,1748922649233,-781.65,0.00021095,2]
[363914041,1748922649243,-440.0,0.00021095,2]
[363914042,1748922649253,-1218.98,0.00021095,2]
[363914043,1748922649263,-414.76,0.00021095,2]
[363914044,1748922649273,-688.66,0.00021095,2]
[363914045,1748922649283,-933.78,0.00021095,2]
[363914046,1748922649294,-525.8,0.00021095,2]
[363914047,1748922649307,-1169.05,0.00021095,2]
[363914048,1748922649316,-1184.86,0.00021095,2]
[363914049,1748922649326,-588.47,0.00021095,2]
[363914050,1748922649336,-449.07,0.00021095,2]
[363914051,1748922649346,-151.600059,0.00021095,2]
[363914052,1748922649356,-154.315943,0.00021095,2]
[363914053,1748922649365,-490.97,0.00021095,2]
[363914054,1748922649376,-733.02,0.00021095,2]
[363914055,1748922649386,-813.14,0.00021095,2]
[363914056,1748922649396,-853.95,0.00021095,2]
[363914057,1748922649406,-440.0,0.00021095,2]
[363914058,1748922649415,-2434.98,0.00021095,2]
[363914059,1748922649425,-10228.68,0.00021121,2]
[363914060,1748922649434,-1730.10239774,0.0002121,4]
[363914061,1748922649443,-440.0,0.00021369,2]
[363914062,1748922649453,-1437.33,0.00021369,2]
[363914063,1748922649463,-781.65,0.00021369,2]
[363914064,1748922649472,-440.0,0.00021369,2]
[363914065,1748922649482,-1218.98,0.00021369,2]
[363914066,1748922649492,-688.66,0.00021369,2]
[363914067,1748922649502,-933.78,0.00021369,2]
[363914068,1748922649512,-525.8,0.00021369,2]
[363914069,1748922649521,-1169.05,0.00021369,2]
[363914070,1748922649531,-1184.86,0.00021369,2]
[363914071,1748922649540,-588.47,0.00021369,2]
[363914072,1748922649551,-449.07,0.00021369,2]
[363914073,1748922649568,-490.97,0.00021369,2]
[363914074,1748922649582,-733.02,0.00021369,2]
[363914075,1748922649592,-813.14,0.00021369,2]
[363914076,1748922649602,-853.95,0.00021369,2]
[363914077,1748922649613,-440.0,0.00021369,2]
[363914078,1748922649623,-2434.98,0.00021369,2]
[363914079,1748922649633,-151.0,0.000214,4]
[363914080,1748922649644,-1730.10239774,0.00021417,5]
[363914081,1748922649654,-353.1243127,0.00021452,2]
[363914082,1748922649664,-2000.0,0.00021472,2]
[363914083,1748922649675,-541.88572857,0.00021477,2]
[363914084,1748922649685,-177.53905904,0.00021488,2]
[363914085,1748922649696,-5000.0,0.00021488,2]
[363914086,1748922649706,-3635.65500645,0.00021543,2]
[363914087,1748922649716,-151.0,0.000216,2]
[363914088,1748922649726,-151.0,0.00021624,2]
[363914089,1748922649737,-1730.10239774,0.00021624,5]
[363914090,1748922649747,-32778.83565344,0.00021642,3]
[363914091,1748922649758,-247906.88986,0.00021642,2]
[363914092,1748922649768,-440.0,0.00021643,2]
[363914093,1748922649780,-1437.33,0.00021643,2]
[363914094,1748922649790,-781.65,0.00021643,2]
[363914095,1748922649800,-375.13,0.00021643,2]
[363914096,1748922649810,-152.259077,0.00021643,2]
[363914097,1748922649820,-1218.98,0.00021643,2]
[363914098,1748922649831,-152.881142,0.00021643,2]
[363914099,1748922649841,-688.66,0.00021643,2]
[363914100,1748922649852,-151.0,0.00021643,2]
[363914101,1748922649862,-933.78,0.00021643,2]
[363914102,1748922649872,-525.8,0.00021643,2]
[363914103,1748922649883,-1169.05,0.00021643,2]
[363914104,1748922649892,-1184.86,0.00021643,2]
[363914105,1748922649902,-588.47,0.00021643,2]
[363914106,1748922649912,-449.07,0.00021643,2]
[363914107,1748922649922,-490.97,0.00021643,2]
[363914108,1748922649933,-733.02,0.00021643,2]
[363914109,1748922649942,-813.14,0.00021643,2]
[363914110,1748922649952,-853.95,0.00021643,2]
[363914111,1748922649963,-440.0,0.00021643,2]
[363914112,1748922649974,-2434.98,0.00021643,2]
[363914113,1748922649984,-159.9390523,0.00021644,2]
[363914114,1748922649994,-500.0,0.00021649,2]
[363914115,1748922650004,-500.0,0.00021649,2]
[363914116,1748922650013,-500.0,0.00021649,2]
[363914117,1748922650023,-500.0,0.00021649,2]
[363914118,1748922650033,-500.0,0.00021649,2]
[363914119,1748922650043,-500.0,0.00021649,2]
[363914120,1748922650053,-500.0,0.00021649,2]
[363914121,1748922650062,-160.86234395,0.00021649,2]
[363914122,1748922650071,-500.0,0.00021649,2]
[363914123,1748922650082,-500.0,0.00021649,2]
[363914124,1748922650091,-500.0,0.00021649,2]
[363914125,1748922650101,-500.0,0.00021649,2]
[363914126,1748922650111,-500.0,0.00021649,2]
[363914127,1748922650122,-500.0,0.00021649,2]
[363914128,1748922650135,-500.0,0.00021649,2]
[363914129,1748922650145,-500.0,0.00021649,2]
[363914130,1748922650155,-500.0,0.00021649,2]
[363914131,1748922650165,-500.0,0.00021649,2]
[363914132,1748922650175,-500.0,0.00021649,2]
[363914133,1748922650188,-500.0,0.00021649,2]
[363914134,1748922650198,-500.0,0.00021649,2]
[363914135,1748922650210,-541.88572858,0.00021655,2]
[363914136,1748922650220,-151.0,0.00021685,2]
[363914137,1748922650231,-372.785163,0.00021685,2]
[363914138,1748922650241,-151.0,0.00021685,2]
[363914139,1748922650251,-372.785163,0.00021685,2]
[363914140,1748922650261,-151.0,0.00021685,2]
[363914141,1748922650270,-195.357438,0.00021685,2]
[363914142,1748922650280,-195.357438,0.00021685,2]
[363914143,1748922650290,-997.528357,0.00021748,3]
[363914144,1748922650300,-159.9390523,0.00021753,2]
[363914145,1748922650311,-1000.0,0.000218,6]
[363914146,1748922650320,-151.0,0.00021831,2]
[363914147,1748922650330,-372.785163,0.00021831,2]
[363914148,1748922650341,-151.0,0.00021831,2]
[363914149,1748922650351,-372.785163,0.00021831,2]
[363914150,1748922650362,-151.0,0.00021831,2]
[363914151,1748922650372,-195.357438,0.00021831,2]
[363914152,1748922650382,-195.357438,0.00021831,2]
[363914153,1748922650391,-1730.10239774,0.00021831,6]
[363914154,1748922650402,-159.9390523,0.00021863,2]
[363914155,1748922650412,-10228.68,0.00021879,2]
[363914156,1748922650421,-10228.68,0.00021879,2]
[363914157,1748922650432,-10228.68,0.00021899,2]
[363914158,1748922650441,-890.502918,0.000219,2]
[363914159,1748922650452,-151.0,0.000219,4]
[363914160,1748922650462,-500.0,0.00021917,2]
[363914161,1748922650472,-440.0,0.00021917,2]
[363914162,1748922650483,-1437.33,0.00021917,2]
[363914163,1748922650494,-781.65,0.00021917,2]
[363914164,1748922650504,-1218.98,0.00021917,2]
[363914165,1748922650514,-688.66,0.00021917,2]
[363914166,1748922650524,-933.78,0.00021917,2]
[363914167,1748922650533,-525.8,0.00021917,2]
[363914168,1748922650543,-1169.05,0.00021917,2]
[363914169,1748922650553,-1184.86,0.00021917,2]
[363914170,1748922650563,-588.47,0.00021917,2]
[363914171,1748922650573,-449.07,0.00021917,2]
[363914172,1748922650584,-490.97,0.00021917,2]
[363914173,1748922650594,-733.02,0.00021917,2]
[363914174,1748922650604,-813.14,0.00021917,2]
[363914175,1748922650614,-853.95,0.00021917,2]
[363914176,1748922650624,-440.0,0.00021917,2]
[363914177,1748922650635,-2434.98,0.00021917,2]
[363914178,1748922650647,-438.047127,0.00021918,2]
[363914179,1748922650657,-438.047127,0.00021918,2]
[363914180,1748922650667,-438.047127,0.00021918,2]
[363914181,1748922650676,-438.047127,0.00021918,2]
[363914182,1748922650686,-438.047127,0.00021918,2]
[363914183,1748922650696,-438.047127,0.00021918,2]
[363914184,1748922650706,-150.0,0.00021918,2]
[363914185,1748922650716,-800.0,0.00021945,2]
[363914186,1748922650727,-927.16171457,0.00021947,2]
[363914187,1748922650737,-438.047127,0.00021947,7]
[363914188,1748922650747,-438.047127,0.00021947,7]
[363914189,1748922650756,-10228.68,0.0002197,2]
[363914190,1748922650767,-6725.153735,0.00021971,2]
[363914191,1748922650777,-159.9390523,0.00021973,2]
[363914192,1748922650789,-800.0,0.00021985,2]
[363914193,1748922650799,-890.502918,0.00021999,7]
[363914194,1748922650810,-151.0,0.00021999,7]
[363914195,1748922650820,-151.0,0.00021999,7]
[363914196,1748922650830,-151.0,0.00021999,7]
[363914197,1748922650839,-10228.68,0.00021999,2]
[363914198,1748922650849,-10228.68,0.00021999,2]
[363914199,1748922650859,-10228.68,0.00021999,2]
[363914200,1748922650869,-10138.57106245,0.00021999,2]
[363914201,1748922650887,-90.10893755,0.00021999,2]
[363914202,1748922650897,-5850.7940941,0.00021999,2]
[363914203,1748922650909,-602.41590639,0.00021999,2]
[363914204,1748922650921,-319.54686517,0.00021999,2]
[363914205,1748922650934,-3455.92313434,0.00021999,2]
[363914206,1748922650944,-10228.68,0.00021999,2]
[363914207,1748922650954,-10228.68,0.00021999,2]
[363914208,1748922650965,-10228.68,0.00021999,2]
[363914209,1748922650975,-9966.51717471,0.00021999,2]
[363914210,1748922650986,-262.16282529,0.00021999,2]
[363914211,1748922650996,-10228.68,0.00021999,2]
[363914212,1748922651005,-2939.26500014,0.00021999,2]
[363914213,1748922651016,-7289.41499986,0.00021999,2]
[363914214,1748922651026,-4305.26741652,0.00021999,2]
[363914215,1748922651039,-1918.93198644,0.00021999,2]
[363914216,1748922651057,-433.45204961,0.00016438,2]
[363914217,1748922651068,-4004.71625604,0.00021999,2]
[363914218,1748922651078,-151.0,0.00021999,7]
[363914219,1748922651088,-428.730718,0.00021999,7]
[363914220,1748922651098,-141.05734664,0.00021999,7]
[363914221,1748922651110,-287.67337136,0.00021999,7]
[363914222,1748922651120,-151.0,0.00021999,7]
[363914223,1748922651133,-438.047127,0.00021999,7]
[363914224,1748922651142,-315.5828802,0.00021999,7]
[363914225,1748922651154,-122.4642468,0.00021999,7]
[363914226,1748922651163,-754.68074595,0.00021999,2]
[363914227,1748922651177,-5083.47836072,0.00021999,2]
[363914228,1748922651189,-1329.01762608,0.00021999,2]
[363914229,1748922651200,-6920.85581223,0.00021999,2]
[363914230,1748922651212,-2517.40185745,0.00021999,2]
[363914231,1748922651225,-12516.28542632,0.00021999,2]
[363914232,1748922651259,-440.0,0.00016438,2]
[363914233,1748922651269,-50.46702145,0.00016438,2]
[363914234,1748922651283,-379.53297855,0.00016438,2]
[363914235,1748922651293,-420.0,0.00016712,2]
[363914236,1748922651302,-1586.06797564,0.00021999,2]
[363914237,1748922651315,-6883.92401368,0.00021999,2]
[363914238,1748922651326,-4139.83189452,0.00021999,2]
[363914239,1748922651339,-27267.27432753,0.00021999,2]
[363914240,1748922651358,-8959.46724556,0.00021999,2]
[363914241,1748922651369,-732.716885,0.00022,2]
[363914242,1748922651380,-182558.14351333,0.00022,2]
[363914243,1748922651390,-10002.62043682,0.00022,2]
[363914244,1748922651400,-500.0,0.00022,2]
[363914245,1748922651410,-500.0,0.00022,2]
[363914246,1748922651420,-261.0,0.00022,2]
[363914247,1748922651430,-151.0,0.00022,7]
[363914248,1748922651440,-151.363005,0.00022,7]
[363914249,1748922651450,-151.0,0.00022,7]
[363914250,1748922651460,-151.0,0.00022,7]
[363914251,1748922651470,-151.0,0.00022,7]
[363914252,1748922651481,-151.0,0.00022,7]
[363914253,1748922651491,-161.30489,0.00022,7]
[363914254,1748922651501,-151.0,0.00022,7]
[363914255,1748922651511,-256.503984,0.00022,7]
[363914256,1748922651521,-151.0,0.00022,7]
[363914257,1748922651531,-151.0,0.00022,7]
[363914258,1748922651541,-151.0,0.00022,7]
[363914259,1748922651550,-151.0,0.00022,7]
[363914260,1748922651562,-151.0,0.00022,7]
[363914261,1748922651582,-7566.0,0.00022,2]
[363914262,1748922651594,-151.0,0.00022,7]
[363914263,1748922651606,-9680.14296365,0.00022,2]
[363914264,1748922651616,-364.514434,0.00022,7]
[363914265,1748922651626,-364.514434,0.00022,7]
[363914266,1748922651637,-364.514434,0.00022,7]
[363914267,1748922651647,-364.514434,0.00022,7]
[363914268,1748922651657,-534.320721,0.00022,7]
[363914269,1748922651666,-534.320721,0.00022,7]
[363914270,1748922651676,-534.320721,0.00022,7]
[363914271,1748922651686,-534.320721,0.00022,7]
[363914272,1748922651696,-890.502918,0.00022,7]
[363914273,1748922651706,-151.0,0.00022,7]
[363914274,1748922651716,-372.785163,0.00022,7]
[363914275,1748922651726,-268.0,0.00022,7]
[363914276,1748922651736,-372.785163,0.00022,7]
[363914277,1748922651747,-151.0,0.00022,7]
[363914278,1748922651758,-151.0,0.00022,7]
[363914279,1748922651769,-151.0,0.00022,7]
[363914280,1748922651779,-195.357438,0.00022,7]
[363914281,1748922651789,-195.357438,0.00022,7]
[363914282,1748922651799,-151.0,0.00022,4]
[363914283,1748922651810,-18468.84587214,0.00022,2]
[363914284,1748922651820,-220.37509,0.00022,7]
[363914285,1748922651829,-220.37509,0.00022,7]
[363914286,1748922651839,-151.249787,0.00022,7]
[363914287,1748922651849,-380.229576,0.00022,7]
[363914288,1748922651861,-380.229576,0.00022,7]
[363914289,1748922651872,-151.0,0.00022,7]
[363914290,1748922651882,-151.0,0.00022,7]
[363914291,1748922651893,-151.0,0.00022,7]
[363914292,1748922651903,-151.0,0.00022,7]
[363914293,1748922651913,-266.231301,0.00022,7]
[363914294,1748922651923,-266.231301,0.00022,7]
[363914295,1748922651933,-456.047144,0.00022,7]
[363914296,1748922651943,-456.047144,0.00022,7]
[363914297,1748922651953,-151.0,0.00022,7]
[363914298,1748922651963,-428.730718,0.00022,7]
[363914299,1748922651973,-428.730718,0.00022,7]
[363914300,1748922651982,-810.334995,0.00022,2]
[363914301,1748922651992,-810.334995,0.00022,2]
[363914302,1748922652002,-151.0,0.00022,7]
[363914303,1748922652012,-155.0,0.00022,2]
[363914304,1748922652021,-12670.76136593,0.00022,3]
[363914305,1748922652031,-438.047127,0.00022,7]
[363914306,1748922652041,-438.047127,0.00022,7]
[363914307,1748922652052,-438.047127,0.00022,7]
[363914308,1748922652063,-438.047127,0.00022,7]
[363914309,1748922652072,-175.0,0.00022,2]
[363914310,1748922652082,-800.0,0.00022006,2]
[363914311,1748922652091,-965.62,0.00022012,2]
[363914312,1748922652101,-709.0,0.00022012,2]
[363914313,1748922652111,-2227.0,0.00022012,2]
[363914314,1748922652121,-405.0,0.00022012,2]
[363914315,1748922652134,-1742.0,0.00022015,3]
[363914316,1748922652144,-1028.63498759,0.00022015,3]
[363914317,1748922652153,-2500.0,0.0002202,2]
[363914318,1748922652163,-800.0,0.00022027,2]
[363914319,1748922652174,-1730.10239774,0.00022038,6]
[363914320,1748922652184,-159.9390523,0.00022082,2]
[363914321,1748922652346,-1071.55,0.00022086,2]
[363914322,1748922652358,-638.0,0.000221,2]
[363914323,1748922652368,-800.0,0.00022135,2]
[363914324,1748922652379,-2838.53603338,0.00022145,2]
[363914325,1748922652390,-700.0,0.00022156,2]
[363914326,1748922652400,-800.0,0.00022174,2]
[363914327,1748922652410,-1071.55,0.00022186,7]
[363914328,1748922652420,-440.0,0.00022191,2]
[363914329,1748922652430,-1437.33,0.00022191,2]
[363914330,1748922652440,-781.65,0.00022191,2]
[363914331,1748922652450,-151.0,0.00022191,7]
[363914332,1748922652460,-185.752689,0.00022191,7]
[363914333,1748922652470,-151.0,0.00022191,7]
[363914334,1748922652480,-1218.98,0.00022191,2]
[363914335,1748922652490,-688.66,0.00022191,2]
[363914336,1748922652500,-151.0,0.00022191,7]
[363914337,1748922652510,-933.78,0.00022191,2]
[363914338,1748922652519,-428.730718,0.00022191,7]
[363914339,1748922652529,-525.8,0.00022191,2]
[363914340,1748922652540,-1169.05,0.00022191,2]
[363914341,1748922652550,-428.730718,0.00022191,7]
[363914342,1748922652561,-1184.86,0.00022191,2]
[363914343,1748922652571,-588.47,0.00022191,2]
[363914344,1748922652581,-449.07,0.00022191,2]
[363914345,1748922652591,-151.0,0.00022191,7]
[363914346,1748922652601,-490.97,0.00022191,2]
[363914347,1748922652611,-733.02,0.00022191,2]
[363914348,1748922652620,-263.20234467,0.00022191,2]
[363914349,1748922652661,-549.93765533,0.00022191,2]
[363914350,1748922652671,-811.43679319,0.00022191,2]
[363914351,1748922652683,-42.51320681,0.00022191,2]
[363914352,1748922652693,-277.58893313,0.00022191,2]
[363914353,1748922652703,-2434.98,0.00022191,2]
[363914354,1748922652712,-151.0,0.00022192,7]
[363914355,1748922652721,-151.0,0.00022192,7]
[363914356,1748922652731,-229.306619,0.00022192,7]
[363914357,1748922652740,-229.306619,0.00022192,7]
[363914358,1748922652750,-151.0,0.00022192,7]
[363914359,1748922652760,-151.0,0.00022192,7]
[363914360,1748922652769,-151.0,0.00022192,7]
[363914361,1748922652779,-151.0,0.00022192,7]
[363914362,1748922652788,-151.0,0.00022192,7]
[363914363,1748922652798,-151.0,0.00022192,7]
[363914364,1748922652808,-248.079201,0.00022192,7]
[363914365,1748922652818,-151.0,0.00022192,7]
[363914366,1748922652829,-151.0,0.00022192,7]
[363914367,1748922652839,-151.0,0.00022192,7]
[363914368,1748922652849,-151.633894,0.00022192,7]
[363914369,1748922652859,-151.0,0.00022192,7]
[363914370,1748922652869,-1024.924651,0.00022192,2]
[363914371,1748922652880,-1024.924651,0.00022192,2]
[363914372,1748922652890,-151.0,0.00022192,7]
[363914373,1748922652902,-154.499419,0.00022192,7]
[363914374,1748922652912,-220.37509,0.00022192,7]
[363914375,1748922652921,-220.37509,0.00022192,7]
[363914376,1748922652931,-151.0,0.00022192,7]
[363914377,1748922652941,-380.229576,0.00022192,7]
[363914378,1748922652950,-380.229576,0.00022192,7]
[363914379,1748922652959,-151.0,0.00022192,7]
[363914380,1748922652969,-266.231301,0.00022192,7]
[363914381,1748922652978,-266.231301,0.00022192,7]
[363914382,1748922652988,-456.047144,0.00022192,7]
[363914383,1748922652997,-456.047144,0.00022192,7]
[363914384,1748922653006,-474.771067,0.00022192,7]
[363914385,1748922653015,-474.771067,0.00022192,7]
[363914386,1748922653024,-1.14161069,0.00022192,2]
[363914387,1748922653157,-440.0,0.00016438,2]
[363914388,1748922653167,-430.0,0.00016438,2]
[363914389,1748922653176,-440.0,0.00016712,2]
[363914390,1748922653186,-440.0,0.00016986,2]
[363914391,1748922653195,-440.0,0.0001726,2]
[363914392,1748922653206,-440.0,0.00017534,2]
[363914393,1748922653215,-440.0,0.00017808,2]
[363914394,1748922653225,-440.0,0.00018082,2]
[363914395,1748922653234,-809.19338431,0.00022192,2]
[363914396,1748922653243,-810.334995,0.00022192,2]
[363914397,1748922653252,-151.0,0.00022192,7]
[363914398,1748922653261,-438.047127,0.00022192,7]
[363914399,1748922653270,-438.047127,0.00022192,7]
[363914400,1748922653279,-18267.79788645,0.00022192,7]
[363914401,1748922653292,-2086.8534869,0.00022192,7]
[363914402,1748922653304,-1575.75627182,0.00022192,7]
[363914403,1748922653316,-864.11502845,0.00022192,7]
[363914404,1748922653329,-1950.83363394,0.00022192,7]
[363914405,1748922653341,-691.95583024,0.00022192,7]
[363914406,1748922653353,-6850.07317694,0.00022192,7]
[363914407,1748922653364,-473.33620781,0.00022192,7]
[363914408,1748922653376,-344.95327808,0.00022192,7]
[363914409,1748922653389,-6092.37393581,0.00022192,7]
[363914410,1748922653467,-757.35874566,0.00016338,2]
[363914411,1748922653478,-300.0,0.00016437,2]
[363914412,1748922653490,-430.0,0.00016438,2]
[363914413,1748922653500,-429.99006563,0.00016438,2]
[363914414,1748922653510,-440.0,0.00016438,2]
[363914415,1748922653519,-420.0,0.00017963,2]
[363914416,1748922653529,-440.0,0.00018356,2]
[363914417,1748922653539,-440.0,0.0001863,2]
[363914418,1748922653549,-350.0,0.00018904,2]
[363914419,1748922653559,-2215.0,0.0002,2]
[363914420,1748922653568,-180568.0,0.0002,2]
[363914421,1748922653579,-11962.05426171,0.00022192,7]
[363914422,1748922653589,-51160.10299815,0.00022192,7]
[363914423,1748922653599,-1582.66,0.000222,7]
[363914424,1748922653610,-151.0,0.000222,7]
[363914425,1748922653622,-372.785163,0.000222,7]
[363914426,1748922653634,-372.785163,0.000222,7]
[363914427,1748922653644,-151.0,0.000222,7]
[363914428,1748922653654,-195.357438,0.000222,7]
[363914429,1748922653663,-195.357438,0.000222,7]
[363914430,1748922653673,-151.0,0.000222,8]
[363914431,1748922653683,-57385.46,0.000222,2]
[363914432,1748922653692,-151.0,0.000222,7]
[363914433,1748922653703,-151.0,0.000222,7]
[363914434,1748922653713,-428.730718,0.000222,7]
[363914435,1748922653723,-428.730718,0.000222,7]
[363914436,1748922653733,-284.554619,0.000222,14]
[363914437,1748922653743,-151.0,0.000222,7]
[363914438,1748922653754,-159.9390523,0.00022219,2]
[363914439,1748922653765,-1730.10239774,0.00022245,6]
[363914440,1748922653775,-158.5442955,0.00022274,2]
[363914441,1748922653785,-176.5641048,0.00022274,2]
[363914442,1748922653794,-572.6068135,0.00022274,2]
[363914443,1748922653804,-176.5641048,0.00022274,2]
[363914444,1748922653814,-158.5442955,0.00022274,2]
[363914445,1748922653824,-572.6068135,0.00022274,2]
[363914446,1748922653835,-176.5641048,0.00022274,2]
[363914447,1748922653846,-158.5442955,0.00022274,2]
[363914448,1748922653856,-572.6068135,0.00022274,2]
[363914449,1748922653865,-176.5641048,0.00022274,2]
[363914450,1748922653875,-572.6068135,0.00022274,2]
[363914451,1748922653884,-158.5442955,0.00022274,2]
[363914452,1748922653894,-176.0886811,0.00022274,2]
[363914453,1748922653905,-1154.0485573,0.00022274,2]
[363914454,1748922653914,-158.5442955,0.00022274,2]
[363914455,1748922653924,-572.6068135,0.00022274,2]